bitfinex-derivatives/quotes_ETHF0:USTF0_20260203
["timestamp","ask_amount","ask_price","bid_price","bid_amount"]
[1770132686006,0.16985669,2295.4,2294.4,0.2181]
[1770132687597,0.16985669,2295.4,2293.7,5.03713047]
[1770132687598,4.52914265,2295.2,2294.0,0.21814]
[1770132687803,0.16993226,2295.2,2294.0,0.21814]
[1770132687999,0.16993226,2295.2,2294.1,0.21813]
[1770132688403,0.17498035,2295.6,2294.4,0.2181]
[1770132688810,0.00504809,2295.6,2294.6,0.21808]
[1770132689206,0.00504809,2295.6,2294.6,0.21978577]
[1770132689603,8.09e-06,2295.6,2295.5,0.21970577]
[1770132690006,8.09e-06,2295.6,2294.6,5.03713047]
[1770132690007,4.36029423,2296.2,2295.7,0.21968577]
[1770132690311,8.71950462,2296.2,2295.7,0.21798]
[1770132690509,4.36029423,2296.2,2294.8,3.82118494]
[1770132690704,5.014,2296.9,2294.8,3.82118494]
[1770132690705,5.18352263,2296.9,2295.0,2.558]
[1770132691009,0.16952263,2296.8,2295.9,0.21796]
[1770132691205,4.35921039,2296.8,2295.2,3.82118494]
[1770132691405,0.00458324,2296.9,2295.3,3.82118494]
[1770132691602,0.00458324,2296.9,2295.5,3.82118494]
[1770132691805,0.00458324,2296.9,2296.4,0.21791]
[1770132692207,0.16985046,2296.8,2295.9,0.21796]
[1770132692413,0.00458324,2296.9,2296.1,0.21794]
[1770132692712,3.24e-06,2296.9,2295.4,4.361]
[1770132693007,0.16985046,2298.0,2296.3,0.21791]
[1770132693508,0.16928908,2297.3,2295.6,0.0009989]
[1770132693806,0.16928908,2297.3,2295.0,5.04253292]
[1770132693807,7.887,2297.2,2296.2,0.21793]
[1770132694006,7.887,2297.2,2295.7,0.21798]
[1770132694007,0.16928908,2297.1,2295.7,0.21798]
[1770132694215,0.16928908,2297.0,2295.7,0.21798]
[1770132694414,4.52849947,2296.8,2295.7,0.21798]
[1770132694813,7.887,2297.2,2295.7,0.21798]
[1770132694814,4.52849947,2296.6,2295.7,0.21798]
[1770132695014,0.16928908,2296.3,2295.1,0.21803]
[1770132695308,0.16957909,2296.0,2294.6,0.0009989]
[1770132695507,0.16957909,2296.0,2295.3,0.21802]
[1770132695915,4.35921039,2295.6,2294.6,0.0009989]
[1770132696116,0.00335814,2295.6,2295.0,0.21804]
[1770132696312,0.00335814,2295.6,2295.1,0.21803]
[1770132696614,0.00335814,2295.6,2294.6,0.00565247]
[1770132696615,4.35921039,2295.3,2294.6,0.00565247]
[1770132696810,0.17293723,2295.6,2295.1,0.21803]
[1770132697009,4.35921039,2295.4,2294.6,0.22373247]
[1770132697207,4.35921039,2295.4,2294.7,0.21807]
[1770132697406,0.16928908,2295.2,2294.6,0.00565247]
[1770132697615,0.16928908,2295.2,2294.2,0.21812]
[1770132697616,0.16928908,2295.0,2294.2,0.21812]
[1770132697811,0.16928908,2295.0,2293.7,4.36001759]
[1770132697812,4.52849947,2295.0,2293.7,4.36001759]
[1770132698115,4.52849947,2294.6,2293.8,0.21816]
[1770132698312,0.16928908,2294.6,2293.8,0.21816]
[1770132698511,4.35921039,2294.6,2293.9,0.21815]
[1770132698818,0.16928908,2295.0,2294.0,0.21814]
[1770132699013,0.16928908,2294.8,2294.0,0.21814]
[1770132699319,4.35921039,2294.5,2293.8,0.00566668]
[1770132699616,0.16928908,2294.5,2293.6,0.21818]
[1770132700018,4.35921039,2294.4,2293.6,0.21818]
[1770132700516,0.16928908,2294.2,2293.6,0.00405663]
[1770132700717,0.16928908,2294.2,2292.7,3.88571732]
[1770132700718,11.27521039,2294.1,2292.7,0.21826]
[1770132700916,0.16928908,2293.9,2292.7,0.21826]
[1770132701118,4.52849947,2293.6,2292.7,0.21826]
[1770132701416,4.52849947,2293.6,2292.8,0.21825]
[1770132701619,7.08528908,2294.0,2293.0,0.21823]
[1770132701809,0.16928908,2293.9,2291.9,3.82118494]
[1770132702015,0.16928908,2293.3,2291.7,0.21836]
[1770132702218,0.16928908,2292.9,2291.7,0.21836]
[1770132702515,0.16928908,2292.7,2291.1,0.21842]
[1770132703012,4.35921039,2291.8,2290.3,0.01766361]
[1770132703213,0.16928908,2291.6,2290.3,0.01766361]
[1770132703519,0.1736255,2291.8,2290.6,0.01702866]
[1770132703714,0.16928908,2291.6,2290.1,0.23553866]
[1770132703914,0.16928908,2291.3,2290.1,0.21851]
[1770132704110,0.16928908,2291.0,2290.1,0.21851]
[1770132704314,0.16928908,2290.9,2289.7,0.01702866]
[1770132704512,4.52849947,2290.9,2289.7,0.01702866]
[1770132704715,0.16928908,2290.9,2289.7,0.23557866]
[1770132704920,0.16928908,2290.9,2289.8,0.01702866]
[1770132705116,4.53028908,2291.0,2289.8,0.23556866]
[1770132705314,0.16928908,2289.8,2288.4,0.21867]
[1770132705511,0.16928908,2289.6,2288.4,0.21867]
[1770132705719,0.16928908,2289.4,2288.4,0.21867]
[1770132705914,0.16928908,2289.4,2288.1,0.02013844]
[1770132705915,4.35921039,2289.1,2287.8,0.02013844]
[1770132706117,0.16928908,2289.4,2288.0,0.23884844]
[1770132706315,0.16928908,2289.3,2287.6,0.02013844]
[1770132706614,0.16928908,2289.3,2287.2,0.21878]
[1770132706615,0.16928908,2289.5,2288.1,0.02013844]
[1770132706810,0.00440264,2289.8,2288.4,0.02013844]
[1770132707021,4.53128908,2289.7,2288.4,0.02013844]
[1770132707222,0.16928908,2289.5,2288.3,0.21868]
[1770132707420,0.16928908,2289.3,2287.9,0.02013844]
[1770132707818,0.16928908,2288.8,2287.6,0.21874]
[1770132708024,0.16928908,2288.8,2287.7,0.01038349]
[1770132708226,0.16928908,2289.6,2287.7,0.01038349]
[1770132708525,0.16928908,2289.2,2287.8,0.01038349]
[1770132708720,4.53128908,2289.7,2288.1,0.01038349]
[1770132708929,0.16928908,2289.6,2288.1,0.01038349]
[1770132709122,0.16928908,2289.3,2288.0,0.2187]
[1770132709323,0.16928908,2289.2,2287.7,0.01038349]
[1770132709525,4.362,2289.7,2286.9,2.559]
[1770132709526,4.362,2289.7,2288.7,0.01122606]
[1770132709829,0.00440264,2289.8,2288.7,0.01122606]
[1770132710524,0.00440264,2289.8,2288.9,0.21863]
[1770132710719,4.36361303,2289.8,2288.9,0.21863]
[1770132710924,0.00440264,2289.8,2288.9,0.21863]
[1770132711120,4.36361303,2289.8,2288.9,0.21863]
[1770132711426,0.00440264,2289.8,2288.9,0.23290463]
[1770132711621,0.00440264,2289.8,2289.1,0.01427463]
[1770132711824,4.364,2290.6,2289.2,0.23286463]
[1770132712029,0.16298493,2291.1,2289.8,0.23281463]
[1770132712431,4.35921039,2290.9,2289.8,0.23281463]
[1770132712727,4.52219532,2290.7,2289.8,0.22294264]
[1770132713030,0.16246542,2290.8,2289.4,0.01398593]
[1770132713230,4.52167581,2290.8,2289.4,0.01398593]
[1770132713527,4.35921039,2290.6,2289.4,0.01398593]
[1770132713723,0.16246542,2290.8,2289.5,0.21856]
[1770132713928,0.16223638,2290.5,2289.5,0.21856]
[1770132714124,0.16223638,2290.4,2289.5,0.09392062]
[1770132714328,4.35921039,2290.0,2289.5,0.09392062]
[1770132714631,4.52823638,2290.5,2289.5,0.09392062]
[1770132714932,4.366,2290.5,2289.5,0.09392062]
[1770132715131,4.35921039,2290.2,2289.5,0.09392062]
[1770132715326,0.16429212,2289.9,2289.5,0.09392062]
[1770132715526,4.35921039,2289.6,2288.9,0.21862]
[1770132715726,0.16429212,2289.9,2288.6,0.01033254]
[1770132715922,0.16429212,2290.3,2289.3,0.21859]
[1770132716129,0.15413733,2289.8,2288.9,0.21863]
[1770132716324,0.15413733,2289.8,2289.1,0.21861]
[1770132716530,4.35921039,2289.7,2289.1,0.21861]
[1770132716829,4.35921039,2289.6,2289.1,0.21861]
[1770132717329,3.89591039,2289.3,2289.1,0.21861]
[1770132717528,3.89591039,2289.4,2288.5,0.01033254]
[1770132717733,3.89591039,2289.7,2288.5,0.01033254]
[1770132717932,3.89591039,2289.6,2288.5,0.01033254]
[1770132718128,0.15413733,2289.2,2286.8,0.07605751]
[1770132718328,0.15413733,2289.0,2287.6,0.21875]
[1770132718627,2.561,2289.1,2287.6,0.00420065]
[1770132718628,4.05004772,2288.6,2287.6,0.00420065]
[1770132718823,0.15413733,2288.6,2288.3,0.21868]
[1770132719028,3.89591039,2288.4,2287.6,0.00420065]
[1770132719428,3.89591039,2288.3,2287.9,0.21872]
[1770132719634,3.45608039,2288.4,2288.1,0.2187]
[1770132719935,0.15413733,2289.0,2288.2,0.21869]
[1770132719936,0.15413733,2288.8,2288.2,0.21869]
[1770132720125,0.00527988,2289.2,2289.1,0.21861]
[1770132720126,9.88e-06,2289.2,2289.1,0.21861]
[1770132720330,0.15413733,2290.1,2288.8,0.16679641]
[1770132720524,0.15413733,2290.1,2289.4,0.21858]
[1770132720730,0.15413733,2289.8,2288.0,0.16679641]
[1770132720929,0.15413733,2289.6,2288.0,0.16679641]
[1770132721129,0.15413733,2289.0,2288.0,0.21871]
[1770132721331,0.15772694,2289.0,2288.0,0.22196518]
[1770132721627,0.15413733,2288.6,2286.5,0.16679641]
[1770132721829,0.00358961,2289.0,2288.1,0.2187]
[1770132722226,4.368,2289.7,2288.6,0.21865]
[1770132722430,0.15413733,2289.6,2288.3,0.16679641]
[1770132722635,2.40862078,2288.7,2288.0,0.21871]
[1770132722834,2.40862078,2288.8,2288.0,0.21871]
[1770132723030,0.15413733,2288.5,2287.2,0.16679641]
[1770132723235,0.00321087,2288.5,2287.5,0.16679641]
[1770132723636,4.369,2288.7,2288.3,0.16679641]
[1770132723834,4.369,2288.7,2288.2,0.21869]
[1770132723835,1.94398165,2288.4,2288.2,0.21869]
[1770132724131,4.369,2288.7,2288.0,0.2187]
[1770132724335,0.21855,2289.7,2288.4,0.16679641]
[1770132724336,4.52313733,2289.7,2288.4,0.16679641]
[1770132724534,0.83165686,2289.3,2288.8,0.21863]
[1770132724734,0.83165686,2289.0,2288.0,0.16679641]
[1770132725235,0.83165686,2288.9,2288.4,0.38546641]
[1770132725437,0.15413733,2289.3,2288.4,0.38546641]
[1770132725940,4.52856816,2289.7,2288.7,0.21864]
[1770132726340,0.00543083,2289.7,2288.4,0.16679641]
[1770132726736,0.00543083,2289.7,2289.0,0.21861]
[1770132726933,0.15956816,2289.7,2289.0,0.00427676]
[1770132728335,0.00543083,2289.7,2289.1,0.21861]
[1770132728538,0.15413733,2290.0,2289.2,0.21859]
[1770132728737,0.15413733,2290.0,2289.0,0.00427676]
[1770132728938,0.15413733,2289.9,2289.0,0.22288676]
[1770132729139,0.15413733,2289.9,2289.1,0.21861]
[1770132729636,0.15413733,2289.9,2289.0,0.00427676]
[1770132729637,0.15788719,2289.9,2289.0,0.00427676]
[1770132730437,0.15788719,2289.9,2288.2,0.21869]
[1770132730438,0.15413733,2289.4,2288.2,0.21869]
[1770132730632,0.15413733,2289.2,2287.7,0.16679641]
[1770132730844,4.962,2289.5,2288.1,0.16679641]
[1770132731036,4.962,2289.5,2288.8,0.21863]
[1770132731338,0.15413733,2289.4,2288.3,0.21868]
[1770132731541,0.15413733,2289.4,2287.7,0.16679641]
[1770132731844,0.15413733,2289.4,2287.7,0.38553641]
[1770132732039,0.05989295,2289.3,2287.7,0.38553641]
[1770132732341,4.962,2289.5,2287.9,0.38550641]
[1770132732536,0.05989295,2289.4,2288.1,0.38549641]
[1770132732739,9.33,2289.3,2288.3,0.16679641]
[1770132733136,9.38989295,2289.6,2288.5,0.21866]
[1770132733343,0.00374986,2289.9,2288.8,0.16679641]
[1770132734038,0.00374986,2289.9,2288.8,0.38542641]
[1770132734239,0.00374986,2289.9,2289.3,0.16679641]
[1770132734442,0.00374986,2289.9,2289.2,0.2186]
[1770132734639,0.06445176,2289.9,2288.6,0.21865]
[1770132734943,0.06445176,2289.9,2288.6,0.38544641]
[1770132735143,0.06445176,2289.9,2288.6,0.21865]
[1770132735546,0.05995783,2289.7,2288.5,0.16679641]
[1770132735942,40.8,2289.6,2288.5,0.16679641]
[1770132736645,0.00374986,2289.9,2288.5,0.16679641]
[1770132736845,0.00374986,2289.9,2288.6,0.16679641]
[1770132737046,0.06370769,2289.9,2288.6,0.16679641]
[1770132737246,40.85995783,2289.8,2288.6,0.16679641]
[1770132739342,40.8,2289.8,2288.6,0.38544641]
[1770132739542,0.00374986,2289.9,2289.3,0.16679641]
[1770132739746,4.985,2290.3,2289.5,0.16679641]
[1770132740648,4.98923811,2290.3,2289.5,0.1709899]
[1770132741141,0.15957103,2290.2,2289.0,2.52160374]
[1770132741446,4.98923811,2290.3,2289.3,0.21859]
[1770132742047,0.15957103,2290.2,2289.3,0.00541838]
[1770132742248,4.98923811,2290.3,2289.3,0.00541838]
[1770132742751,0.15957103,2290.1,2289.3,0.00541838]
[1770132743043,0.22273811,2290.3,2289.3,0.00541838]
[1770132743243,4.99,2290.0,2289.3,0.00541838]
[1770132743450,0.00423811,2290.3,2289.3,0.16811259]
[1770132743749,4.992,2290.2,2289.3,0.16811259]
[1770132743949,0.00423811,2290.3,2289.6,0.38125421]
[1770132744242,1e-08,2290.3,2289.6,0.38125421]
[1770132744643,1e-08,2290.3,2289.6,0.21856]
[1770132744839,4.37,2290.5,2289.8,0.16269421]
[1770132745047,4.37,2291.4,2290.5,0.38116421]
[1770132745247,4.37,2291.4,2290.4,0.16269421]
[1770132745446,37.73044526,2292.0,2290.7,0.16269421]
[1770132745447,4.991,2292.0,2290.7,0.16269421]
[1770132745648,4.991,2292.0,2291.1,0.16269421]
[1770132745944,4.99435071,2292.0,2291.1,0.16650276]
[1770132746154,4.99435071,2292.0,2291.3,0.38108421]
[1770132746350,4.99435071,2292.0,2291.1,0.00380855]
[1770132746750,4.99435071,2292.0,2291.2,0.16269421]
[1770132747152,9.36155071,2292.0,2291.2,0.16269421]
[1770132747452,0.00335071,2292.0,2291.1,0.00380855]
[1770132747645,4.37055071,2292.0,2291.1,0.00380855]
[1770132747845,0.15957103,2291.5,2290.4,2.52160374]
[1770132748149,0.15957103,2290.9,2289.6,2.74016374]
[1770132748351,0.15957103,2290.6,2289.2,2.74019374]
[1770132748551,0.15957103,2290.4,2289.2,0.21859]
[1770132748952,0.15957103,2290.4,2289.2,0.22180305]
[1770132749247,0.15957103,2290.1,2289.2,0.00321305]
[1770132749450,0.1641719,2290.1,2289.2,0.00321305]
[1770132749651,4.3672,2290.0,2289.2,0.00321305]
[1770132749851,4.52677103,2290.0,2289.2,0.00321305]
[1770132750953,4.3672,2289.8,2289.2,0.00321305]
[1770132751154,4.3672,2289.9,2289.0,0.21861]
[1770132751355,0.15957103,2290.0,2289.0,0.21861]
[1770132751652,0.00460087,2290.1,2289.3,0.21858]
[1770132752456,0.00460087,2290.1,2289.3,0.16749274]
[1770132753150,0.00460087,2290.1,2289.4,0.16269421]
[1770132753352,9.51757103,2290.5,2289.7,0.16269421]
[1770132753753,13.88477103,2290.5,2289.7,0.16269421]
[1770132753952,0.15957103,2291.4,2290.2,0.2185]
[1770132754147,0.15957103,2291.3,2290.2,0.2185]
[1770132754352,0.15957103,2291.3,2290.3,0.21849]
[1770132754353,0.15957103,2291.2,2290.3,0.21849]
[1770132754553,0.00415129,2291.3,2290.3,0.38118421]
[1770132754755,0.00415129,2291.3,2290.4,0.16269421]
[1770132755055,4.369,2291.5,2290.6,0.16269421]
[1770132755254,4.369,2291.5,2290.8,0.16269421]
[1770132755451,4.369,2291.5,2290.7,0.21845]
[1770132755648,4.52857103,2291.5,2290.7,0.21845]
[1770132755853,4.3672,2291.3,2290.4,0.16269421]
[1770132756051,4.3672,2291.4,2290.4,0.38117421]
[1770132756250,0.00501132,2291.5,2291.0,0.16269421]
[1770132756450,0.32259865,2292.8,2290.6,3.78240359]
[1770132756451,4.369,2292.4,2291.1,2.52160374]
[1770132756753,40.48045959,2293.4,2291.1,2.52160374]
[1770132756754,0.15957103,2292.7,2291.5,0.16269421]
[1770132757057,0.15957103,2292.7,2291.9,0.21834]
[1770132757256,4.3672,2292.6,2291.5,0.16269421]
[1770132757456,4.53064703,2292.7,2291.9,0.00559572]
[1770132757756,0.16344703,2292.7,2291.9,0.00559572]
[1770132758052,4.3672,2292.5,2291.9,0.00559572]
[1770132758556,0.16344703,2292.7,2291.4,0.21839]
[1770132758557,4.3672,2292.0,2291.4,0.21839]
[1770132758756,0.15957103,2292.1,2291.4,0.21839]
[1770132759052,4.3672,2291.9,2291.4,0.21839]
[1770132759253,0.15957103,2291.6,2290.3,0.16269421]
[1770132759554,0.15957103,2291.6,2290.4,0.21848]
[1770132759859,4.52677103,2291.4,2290.5,0.21847]
[1770132760057,0.15957103,2291.4,2290.6,0.21846]
[1770132760355,5.13157103,2291.8,2290.5,0.16269421]
[1770132760554,5.13157103,2291.8,2290.9,0.21843]
[1770132760957,4.3672,2291.6,2290.9,0.21843]
[1770132761253,4.3672,2291.4,2290.9,0.21843]
[1770132761457,0.15957103,2291.4,2290.9,0.21843]
[1770132761654,0.15957103,2291.3,2290.4,0.21848]
[1770132762051,4.3672,2291.3,2290.4,0.21848]
[1770132762254,0.15957103,2291.4,2290.4,0.21848]
[1770132762658,4.3672,2291.2,2290.4,0.21848]
[1770132762957,4.52677103,2291.4,2290.6,0.21846]
[1770132763158,0.15957103,2291.4,2290.6,0.21846]
[1770132763359,4.3672,2291.2,2290.6,0.21846]
[1770132763558,0.15957103,2290.8,2290.0,0.21852]
[1770132763754,0.15957103,2291.6,2290.1,0.16269421]
[1770132763959,9.49657103,2291.6,2290.7,0.21845]
[1770132764260,0.15957103,2291.5,2290.7,0.21845]
[1770132764459,4.3672,2291.4,2290.7,0.21845]
[1770132764656,4.367,2291.6,2291.0,0.21842]
[1770132764862,4.3672,2291.4,2291.0,0.22277189]
[1770132765356,4.3672,2291.3,2291.0,0.22277189]
[1770132765559,4.3672,2291.4,2291.0,0.22277189]
[1770132765756,8.73914591,2291.6,2291.0,0.00435189]
[1770132766061,4.52657103,2292.6,2291.7,0.21836]
[1770132766261,4.52657103,2292.6,2291.3,0.16269421]
[1770132766262,3.92473,2292.2,2291.3,0.16269421]
[1770132766463,4.367,2292.6,2292.4,0.21829]
[1770132766464,3.91361,2292.6,2292.4,0.21829]
[1770132766664,2.62438643,2292.6,2291.8,0.21835]
[1770132766860,2.78395746,2292.6,2291.8,0.21835]
[1770132767056,2.78731123,2292.6,2291.8,0.21835]
[1770132767360,4.97,2293.3,2292.5,0.21828]
[1770132767564,4.97,2293.3,2292.1,0.16269421]
[1770132767565,4.97,2293.3,2292.7,0.21826]
[1770132767863,3.92473,2292.9,2292.1,0.21832]
[1770132768366,0.15957103,2293.2,2292.1,0.21832]
[1770132768663,0.00391824,2292.9,2292.1,0.22158557]
[1770132769361,3.92473,2292.7,2292.1,0.22158557]
[1770132769667,4.52657103,2293.6,2292.7,0.21826]
[1770132769860,3.92473,2293.5,2292.7,0.21826]
[1770132770061,3.92473,2293.4,2292.7,0.21826]
[1770132770260,3.92473,2293.6,2292.7,0.16269421]
[1770132770462,0.15419136,2294.5,2293.0,2.688653]
[1770132770661,0.1588154,2294.5,2293.6,0.21817]
[1770132770868,0.15419136,2294.4,2293.8,0.21816]
[1770132771063,0.00462404,2294.5,2294.1,0.21813]
[1770132771263,0.15419136,2295.2,2294.6,0.21808]
[1770132771470,4.366,2295.8,2294.6,0.16704926]
[1770132772064,0.21788,2296.8,2294.3,2.57198831]
[1770132772065,0.15419136,2296.4,2295.9,0.21796]
[1770132772270,0.15805556,2296.4,2295.9,0.22145784]
[1770132772572,0.15419136,2297.3,2295.3,0.16704926]
[1770132772766,0.15419136,2297.3,2294.8,2.57198831]
[1770132772767,0.15419136,2297.3,2296.4,0.2179]
[1770132772967,0.15419136,2297.3,2296.0,0.16704926]
[1770132773170,0.16705796,2297.7,2296.7,0.21788]
[1770132773568,0.16705796,2297.0,2295.4,0.16451731]
[1770132773873,0.16705796,2296.8,2295.4,0.38251731]
[1770132774075,4.365,2296.9,2295.9,0.21796]
[1770132774470,2.65671597,2296.6,2295.9,0.21796]
[1770132774670,2.65671597,2296.6,2295.9,0.22191381]
[1770132774866,0.16705796,2296.8,2295.9,0.00395381]
[1770132775270,2.65671597,2296.4,2295.9,0.00395381]
[1770132775674,0.16705796,2297.6,2295.9,0.16847112]
[1770132775871,5.05118456,2299.7,2295.9,0.16847112]
[1770132775872,37.73044526,2300.5,2298.2,0.21773]
[1770132776070,2.75001433,2300.5,2298.4,0.16451731]
[1770132776270,2.75001433,2300.5,2297.1,33.0732104]
[1770132776271,4.363,2300.7,2299.1,0.21765]
[1770132776574,4.363,2300.7,2299.2,0.16451731]
[1770132776968,4.363,2300.7,2299.5,0.21761]
[1770132776969,2.18007597,2300.5,2299.5,0.21761]
[1770132777175,4.36842175,2300.7,2299.2,0.00379229]
[1770132777474,2.18007597,2300.4,2299.2,0.1683096]
[1770132777670,0.00542175,2300.7,2299.2,2.7263096]
[1770132777976,0.00542175,2300.7,2300.0,0.16451731]
[1770132778476,0.16705796,2301.7,2300.2,0.16451731]
[1770132779072,2.40204053,2301.0,2300.3,0.16451731]
[1770132779276,0.21846672,2301.0,2300.4,0.16451731]
[1770132779470,0.16705796,2302.7,2300.9,0.16451731]
[1770132779671,4.359,2302.8,2301.3,0.16451731]
[1770132779876,0.16705796,2303.2,2301.8,0.2174]
[1770132780078,0.16705796,2302.7,2301.0,0.16451731]
[1770132780278,0.21726,2303.3,2300.1,0.16451731]
[1770132780279,0.16705796,2301.8,2300.1,0.16451731]
[1770132780472,0.16705796,2301.6,2300.1,0.16895852]
[1770132780671,4.358,2301.7,2300.2,0.16451731]
[1770132780972,0.16705796,2300.9,2300.1,0.00444121]
[1770132781272,2.34713393,2300.5,2298.4,0.16451731]
[1770132781477,0.16705796,2300.4,2298.8,0.16451731]
[1770132781676,0.16705796,2300.2,2298.4,0.16451731]
[1770132781977,0.16705796,2300.2,2298.7,0.16451731]
[1770132781978,2.18007597,2300.1,2298.7,0.16451731]
[1770132782180,0.00394173,2300.1,2298.7,0.1677789]
[1770132782680,4.356,2302.0,2300.8,0.16451731]
[1770132782880,0.16705796,2302.8,2301.5,0.21742]
[1770132783070,0.16705796,2302.8,2301.2,0.16451731]
[1770132783274,4.356,2302.9,2301.2,0.16451731]
[1770132783476,0.16705796,2304.0,2302.9,0.2173]
[1770132783683,0.16705796,2305.0,2302.8,0.16451731]
[1770132783985,0.16705796,2305.0,2302.1,2.75001433]
[1770132783986,0.16705796,2304.9,2303.3,0.16451731]
[1770132784279,4.356,2305.1,2304.2,0.21717]
[1770132784479,4.356,2305.1,2303.9,0.16451731]
[1770132784679,2.18007597,2305.0,2303.9,0.16451731]
[1770132784880,0.17116292,2305.0,2303.0,0.16451731]
[1770132785074,2.18007597,2303.7,2302.9,0.00499126]
[1770132785273,2.18007597,2303.6,2302.5,0.16451731]
[1770132785477,2.18007597,2303.3,2302.5,0.16451731]
[1770132785778,0.16705796,2305.1,2303.4,0.16451731]
[1770132786081,0.16705796,2305.1,2303.0,0.21729]
[1770132786380,0.16705796,2304.7,2303.1,0.16451731]
[1770132786578,2.18007597,2304.9,2303.1,0.16451731]
[1770132786777,1.49e-06,2305.1,2304.6,0.21713]
[1770132786978,0.22196456,2306.0,2303.2,6.905]
[1770132786979,0.22196456,2306.0,2305.2,0.16451731]
[1770132787185,0.07550691,2307.9,2305.3,0.16451731]
[1770132787186,0.16705796,2307.0,2305.3,0.16451731]
[1770132787380,0.16705796,2307.4,2305.7,0.16451731]
[1770132787682,4.51805796,2308.4,2306.6,0.16451731]
[1770132787888,0.16705796,2307.8,2306.6,0.00454815]
[1770132788179,0.16705796,2307.8,2306.0,0.16451731]
[1770132788380,2.17448272,2307.1,2305.4,0.16451731]
[1770132788579,0.16705796,2307.6,2305.4,0.16451731]
[1770132788789,0.16705796,2307.1,2305.5,0.16451731]
[1770132788986,0.16705796,2307.1,2304.4,0.21715]
[1770132788987,0.16705796,2307.1,2304.8,0.16451731]
[1770132789286,0.16705796,2307.6,2305.5,0.16451731]
[1770132789483,2.34154068,2307.0,2305.2,0.16451731]
[1770132789786,2.34154068,2307.1,2305.2,0.16451731]
[1770132789986,0.16705796,2306.5,2304.9,0.16451731]
[1770132790187,0.16705796,2306.5,2304.8,0.00552799]
[1770132790188,0.16705796,2306.0,2304.8,0.00552799]
[1770132790582,9.47297,2306.4,2304.0,0.16451731]
[1770132790583,2.17448272,2304.9,2304.0,0.16451731]
[1770132790784,0.16705796,2306.0,2304.1,0.16451731]
[1770132791092,2.17448272,2304.8,2303.4,0.16451731]
[1770132791287,0.16705796,2305.4,2303.8,0.16451731]
[1770132791590,0.16705796,2305.2,2303.8,0.00443874]
[1770132791789,0.16705796,2304.9,2303.8,0.00443874]
[1770132791989,2.17448272,2304.4,2303.8,0.00443874]
[1770132792288,2.17448272,2304.5,2303.8,0.16895605]
[1770132792483,2.17448272,2304.3,2303.2,0.16451731]
[1770132792684,0.16705796,2304.8,2303.2,0.38177731]
[1770132792884,2.17448272,2304.0,2302.6,0.16451731]
[1770132793086,0.16705796,2304.9,2303.4,0.16451731]
[1770132793286,0.16705796,2304.9,2303.5,0.21724]
[1770132793487,2.17448272,2304.4,2303.5,0.003079]
[1770132793687,0.16705796,2305.3,2303.7,0.16451731]
[1770132793882,4.35043569,2305.4,2303.6,0.16451731]
[1770132794083,4.35043569,2305.4,2303.7,0.16451731]
[1770132794289,0.16705796,2305.1,2303.5,0.003079]
[1770132794484,0.16705796,2304.7,2303.5,0.003079]
[1770132794683,0.16705796,2304.3,2302.8,0.16451731]
[1770132794986,4.51305796,2304.2,2302.8,0.16451731]
[1770132795192,6.52048272,2304.2,2302.8,0.16451731]
[1770132795390,4.346,2304.2,2302.9,0.16451731]
[1770132795592,4.346,2304.2,2303.0,0.21728]
[1770132795790,0.00343569,2305.4,2303.0,0.21728]
[1770132795791,0.00343569,2305.4,2304.0,0.16451731]
[1770132795990,4.51205796,2306.7,2304.9,0.16451731]
[1770132796185,4.51205796,2306.7,2305.3,0.21706]
[1770132796389,2.17448272,2306.5,2305.3,0.21706]
[1770132796591,3.85053,2306.7,2304.9,0.16451731]
[1770132796791,0.16705796,2307.5,2305.6,0.16451731]
[1770132796990,0.17157947,2307.5,2305.6,0.16910194]
[1770132797188,0.16705796,2306.5,2305.6,0.00458463]
[1770132797386,0.16705796,2307.4,2305.7,0.16451731]
[1770132797590,0.07999051,2307.5,2305.6,0.00458463]
[1770132797591,0.00452151,2307.5,2306.6,0.16451731]
[1770132797795,0.16705796,2308.3,2306.6,0.16451731]
[1770132797986,2.17448272,2308.0,2306.6,0.16451731]
[1770132798187,2.548,2309.1,2306.1,4.56199]
[1770132798188,0.16705796,2309.2,2307.6,0.16451731]
[1770132798392,0.16705796,2309.5,2307.6,0.16451731]
[1770132798591,0.22196456,2311.0,2308.5,0.16451731]
[1770132798792,0.30086178,2311.0,2309.3,0.16451731]
[1770132799090,4.344,2312.6,2310.4,0.16451731]
[1770132799293,0.16705796,2313.6,2310.9,0.16451731]
[1770132799491,0.16705796,2315.2,2311.1,0.16451731]
[1770132799695,0.16705796,2314.3,2312.0,0.16451731]
[1770132799890,4.343,2315.5,2311.2,37.293]
[1770132799891,0.16705796,2315.4,2312.1,0.16451731]
[1770132800092,0.16705796,2315.2,2312.1,0.57611453]
[1770132800394,0.16705796,2313.5,2312.1,0.00393787]
[1770132800589,0.15992009,2313.1,2311.2,0.16451731]
[1770132800789,2.30582818,2312.4,2311.2,0.16451731]
[1770132800989,0.15992009,2312.8,2311.2,0.16451731]
[1770132801188,2.30582818,2312.2,2309.6,0.16873623]
[1770132801388,0.15992009,2312.1,2309.8,0.16873623]
[1770132801696,0.15992009,2312.1,2310.0,0.16873623]
[1770132801890,0.15992009,2312.1,2309.8,0.004618]
[1770132801891,0.15992009,2311.3,2309.8,0.004618]
[1770132802094,0.16544758,2311.3,2309.8,0.004618]
[1770132802289,0.15992009,2310.7,2309.0,0.16873623]
[1770132802493,0.21648,2311.6,2307.3,30.379]
[1770132802494,0.15992009,2313.1,2310.4,0.16873623]
[1770132802693,0.15992009,2312.6,2309.9,0.16873623]
[1770132802993,0.15992009,2312.6,2310.1,0.21661]
[1770132803297,0.15992009,2312.6,2311.1,0.16873623]
[1770132803495,0.16550396,2312.6,2311.1,0.00415627]
[1770132803694,0.15992009,2311.7,2309.9,0.16873623]
[1770132804100,2.30582818,2311.3,2309.9,0.16873623]
[1770132804295,0.15992009,2311.7,2309.9,0.16873623]
[1770132804594,2.30582818,2310.8,2309.9,0.0035746]
[1770132804800,0.00353257,2310.8,2309.9,0.0035746]
[1770132805101,0.00353257,2310.8,2309.7,0.21665]
[1770132805296,0.21618,2314.9,2311.4,0.21649]
[1770132805499,0.22196456,2315.9,2311.4,0.21649]
[1770132805500,0.21621,2314.5,2311.4,0.21649]
[1770132805796,2.05443187,2313.9,2311.6,0.21648]
[1770132806001,0.21637,2312.8,2309.7,0.16873623]
[1770132806193,7.09538,2312.7,2309.7,0.38539623]
[1770132806394,2.05443187,2311.9,2309.7,0.00473707]
[1770132806600,2.543,2312.6,2309.7,0.00473707]
[1770132806601,2.05443187,2311.0,2309.7,0.00473707]
[1770132806896,9.14998187,2310.9,2307.9,0.21682]